[Event "53rd Indian Junior Open-ch 2024"]
[Site "Karnal"]
[Date "2024.09.18"]
[Round "3.1"]
[White "Chaudhari, Ashish"]
[Black "Rohit S"]
[Result "0-1"]
[ECO "D36"]
[WhiteElo "1943"]
[BlackElo "2309"]
[Annotator "TA"]
[PlyCount "86"]
[EventDate "2024.09.16"]
[EventType "swiss"]
[EventCountry "IND"]
[SourceTitle "playchess.com"]
[Source "ChessBase"]
[SourceQuality "1"]
[TimeControl "5400+30"]

{[%evp 21,85,7,7,1,20,0,0,0,0,-4,0,0,-4,-3,0,0,1,-20,-19,-36,-25,-37,-34,-32,-21,-45,-47,-79,-71,-64,-54,-96,-33,-56,-3,-158,-43,-65,-48,-42,0,-23,-22,-275,-262,-322,-292,-373,-367,-554,-546,-593,-553,-597,-554,-1239,-1204,-1442,-1464,-3168,-2755,-29993,-29994,-29998,-29999,-29999]} 1. d4 {[%emt 0:00:08]} Nf6 {[%emt 0:05:11]} 2. c4 {[%emt 0:00:09]} e6 {[%emt 0:00:06]} 3. Nf3 {[%emt 0:00:05]} d5 {[%emt 0:00:05]} 4. cxd5 {[%emt 0:01:08]} exd5 {[%emt 0:00:31]} 5. Nc3 {[%emt 0:00:10]} c6 {[%emt 0:01:06]} 6. Bg5 {[%emt 0:00:51]} Be7 {[%emt 0:02:39]} 7. Qc2 {[%emt 0:00:24]} O-O {[%emt 0:03:12]} 8. e3 {[%emt 0:01:37]} Ne4 {[%emt 0:03:42]} 9. Bxe7 {[%emt 0:05:22]} Qxe7 {[%emt 0:02:24]} 10. Bd3 {[%emt 0:01:05]} Bf5 {[%emt 0:05:26]} 11. O-O {[%emt 0:01:29]} Nd7 {[%emt 0:02:03]} 12. a3 {[%emt 0:04:17]} a5 {[%emt 0:06:56]} 13. b3 {[%emt 0:07:51]} Rfe8 {[%emt 0:03:50]} 14. Rfe1 {[%emt 0:11:18] The position is equal.} h5 {[%emt 0:02:17]} 15. Na4 {[%emt 0:06:58]} Qf6 {[%emt 0:02:35]} 16. Nc5 {[%emt 0:08:26]} Ndxc5 {[%emt 0:05:10]} 17. dxc5 {[%emt 0:00:49]} h4 {[%emt 0:04:04]} 18. Nd4 $1 {[%emt 0:02:15] [#] Threatens to win with Nxf5.} Bd7 {[%emt 0:00:52]} 19. f3 {[%emt 0:16:53]} Ng5 {[%emt 0:01:15]} 20. Qf2 {[%emt 0:03:07]} h3 {[%emt 0:04:05]} 21. g3 {[%emt 0:08:58]} g6 {[%emt 0:07:47]} 22. Rac1 {[%emt 0:02:58]} Re7 {[%emt 0:01:17]} 23. f4 {[%emt 0:03:26]} Ne4 {[%emt 0:03:19]} 24. Qf3 {[%emt 0:02:49]} Rae8 {[%emt 0:01:05][%cal Oe4c5] aiming for ...Nxc5! Black is more active.} 25. b4 {[%emt 0:06:05]} Qg7 {[%emt 0:11:43]} 26. Re2 {[%emt 0:04:06]} Nf6 {[%emt 0:06:04]} (26... axb4 $17 27. axb4 Ra8) 27. f5 $1 $15 {[%emt 0:00:42]} g5 {[%emt 0:02:17]} (27... axb4 $15 28. axb4 Ne4) 28. g4 $2 {[%emt 0:00:30]} ({Better is} 28. bxa5 $11 Re5 29. Kh1) 28... Qh6 {[%emt 0:01:14]} (28... Rxe3 $17 29. Rxe3 Rxe3 30. Qxe3 Nxg4) 29. Kh1 $1 {[%emt 0:00:27]} axb4 {[%emt 0:01:33]} 30. axb4 {[%emt 0:00:02]} Kg7 {[%emt 0:00:30]} 31. Rce1 {[%emt 0:00:53]} Ra8 $36 {[%emt 0:00:53][%mdl 2048] White is under pressure.} 32. Kg1 $2 {[%emt 0:00:39][%mdl 8192] White does not recover from this.} (32. Bc2 $11 {and White has nothing to worry.}) 32... Ra3 $19 {[%emt 0:01:24]} ({Much less strong is} 32... Qh4 33. Bc2) 33. Rd1 {[%emt 0:00:32]} Qh4 {[%emt 0:00:13][%cal Og7f8]} 34. Nc2 {[%emt 0:00:19]} Rc3 {[%emt 0:00:30]} (34... Qxg4+ $2 {perishes.} 35. Qxg4 Nxg4 36. Nxa3 $18) 35. Kh1 {[%emt 0:00:38]} (35. Nd4 $142) 35... Nxg4 {[%emt 0:01:14] ...Ne5 is the strong threat.} 36. f6+ {[%emt 0:00:18]} Nxf6 {[%emt 0:00:01] White must now prevent ...Bg4.} 37. Rf1 {[%emt 0:00:36]} g4 {[%emt 0:00:09]} 38. Qf4 {[%emt 0:00:35]} Rxd3 {[%emt 0:00:06]} 39. Nd4 {[%emt 0:00:07]} Re4 {[%emt 0:00:45]} 40. Qd6 {[%emt 0:00:54]} Rdxd4 {[%emt 0:00:20]} 41. Ref2 {[%emt 0:00:16] [#]} Qxf2 $3 {[%emt 0:00:15] Black mates.} 42. Rxf2 {[%emt 0:00:31]} (42. Qxf6+ Qxf6) 42... Rd1+ {[%emt 0:00:04]} 43. Rf1 {[%emt 0:00:05]} Rxf1# {[%emt 0:11:48] Weighted Error Value: White=0.89/Black=0.13 (very precise) .  Loses game:     	White=1     	---        Mistake:       	White=2     	Black=3      Inaccurate:     	White=3     	Black=1      OK:         	White=2     	Black=13     Best:        	White=1     	Black=2      Strong:       	White=3     	---} 0-1

[Event "53rd Indian Junior Open-ch 2024"]
[Site "Karnal"]
[Date "2024.09.18"]
[Round "3.2"]
[White "Sourath Biswas"]
[Black "Agnivo Chakraborty"]
[Result "1/2-1/2"]
[ECO "D00"]
[WhiteElo "2305"]
[BlackElo "1943"]
[Annotator "TA"]
[PlyCount "95"]
[EventDate "2024.09.16"]
[EventType "swiss"]
[EventCountry "IND"]
[SourceTitle "playchess.com"]
[Source "ChessBase"]
[SourceQuality "1"]
[TimeControl "5400+30"]

{[%evp 9,95,45,100,46,73,8,37,43,51,46,43,41,43,40,99,67,63,64,66,75,76,69,154,156,142,168,160,87,139,133,135,107,112,116,166,156,211,202,255,187,190,187,229,218,271,268,263,205,218,208,238,-102,-100,-100,-83,-83,-86,-143,-128,-120,-116,-141,-143,-156,-140,-162,-140,-162,-167,-196,0,0,0,0,0,-12,-18,-20,0,0,0,0,0,0,0,-39,-8,-26]} 1. d4 {[%emt 0:00:09]} d5 {[%emt 0:00:06]} 2. Bf4 {[%emt 0:00:04]} Nc6 {[%emt 0:00:06][%cal Bb8c6,Bc6b4,Bb4d3][%mdl 32]} 3. e3 {[%emt 0:00:03]} f6 {[%emt 0:00:05]} 4. Bd3 {[%emt 0:00:04]} g6 {[%emt 0:00:21][%cal Bg7g6,Bg6g5,Bg5g4][%mdl 32]} 5. Nf3 {[%emt 0:00:06]} e6 {[%emt 0:01:56]} (5... Bg4 $14) 6. e4 {[%emt 0:00:57]} (6. c4 $16) 6... Nb4 {[%emt 0:06:10]} 7. e5 {[%emt 0:00:36]} (7. Nc3 $16) 7... Nxd3+ {[%emt 0:00:54]} 8. Qxd3 {[%emt 0:00:19] White is slightly better.} g5 {[%emt 0:04:52]} 9. Be3 {[%emt 0:01:51]} g4 {[%emt 0:03:41]} 10. Nfd2 {[%emt 0:00:44]} fxe5 {[%emt 0:05:44]} 11. dxe5 {[%emt 0:00:29]} c5 {[%emt 0:12:55] [#]} (11... Nh6 $14) 12. Bxc5 $1 {[%emt 0:03:44] White is more active.} Bxc5 {[%emt 0:02:02]} 13. Qb5+ {[%emt 0:00:03]} Bd7 {[%emt 0:01:02]} 14. Qxc5 {[%emt 0:00:06]} Ne7 {[%emt 0:09:42]} 15. Nc3 {[%emt 0:04:16]} Qb6 {[%emt 0:04:48]} (15... b6 $14 16. Qb4 Rg8) 16. Qxb6 $16 {[%emt 0:06:20]} axb6 {[%emt 0:00:06] [#]} 17. h3 $1 {[%emt 0:00:02]} g3 {[%emt 0:06:47]} 18. Nf3 {[%emt 0:06:32]} (18. fxg3 $142 b5 19. Nf3) 18... Rc8 {[%emt 0:08:16]} ({Black should play} 18... gxf2+ 19. Kxf2 Rf8) 19. fxg3 {[%emt 0:04:32]} Nf5 {[%emt 0:00:19]} 20. O-O-O {[%emt 0:00:11][%cal Ba1d1,Bd1d4,Bd4b4][%mdl 32] Threatens to win with g4.} Nxg3 {[%emt 0:00:44]} 21. Rhe1 {[%emt 0:00:04]} O-O {[%emt 0:02:26]} (21... Rg8 $16 {was called for.} 22. Nd4 Ke7) 22. Rd4 {[%emt 0:00:10] Strongly threatening Rg4+.} Nh5 {[%emt 0:01:37]} (22... Rc4 $16 23. Rxc4 dxc4) 23. Rb4 {[%emt 0:04:10]} b5 {[%emt 0:00:42]} 24. Ne2 {[%emt 0:02:24]} Rc4 {[%emt 0:01:38]} 25. a3 {[%emt 0:01:27]} Be8 {[%emt 0:06:09]} 26. Nfd4 {[%emt 0:04:43]} Ng7 {[%emt 0:03:10]} 27. b3 {[%emt 0:02:35]} (27. Nxb5 Rxb4 28. axb4 Bxb5 $19) 27... Rc5 {[%emt 0:00:35]} 28. Ng3 {[%emt 0:06:50]} Rf2 {[%emt 0:03:46]} 29. Re2 {[%emt 0:00:56]} Rf4 {[%emt 0:00:17] [#]} 30. Ndf5 $2 {[%emt 0:02:28]} Rxf5 $17 {[%emt 0:01:29]} (30... Nxf5 $2 {loses.} 31. Rxf4 Nxg3 32. Rg4+ Bg6 33. Rxg3 $18) 31. Nxf5 {[%emt 0:00:19]} Nxf5 {[%emt 0:00:07]} 32. Kb2 {[%emt 0:02:16]} Bg6 {[%emt 0:00:35]} 33. a4 {[%emt 0:00:14]} ({White should try} 33. g4 Ng3 34. Rh2) 33... Ng3 {[%emt 0:00:43]} 34. Rf2 {[%emt 0:00:05]} Ne4 {[%emt 0:00:32]} 35. Rf4 {[%emt 0:00:06]} bxa4 {[%emt 0:02:41]} 36. Rxa4 {[%emt 0:00:14]} Nc3 {[%emt 0:00:42]} 37. Ra8+ {[%emt 0:00:21]} Kg7 {[%emt 0:00:06]} 38. Rb8 {[%emt 0:00:54]} Rc7 {[%emt 0:01:11]} 39. g4 {[%emt 0:01:16]} h6 $2 {[%emt 0:02:39]} (39... Ne2 $19 40. Rf3 Rxc2+ (40... Bxc2 41. Re3 $17) 41. Ka3 Rc7) 40. Rff8 $1 $11 {[%emt 0:00:21]} d4 {[%emt 0:02:42]} 41. Rg8+ {[%emt 0:00:19]} Kh7 {[%emt 0:00:21]} 42. Rgc8 {[%emt 0:00:16]} Rxc8 {[%emt 0:00:19]} 43. Rxc8 {[%emt 0:00:05]} Nd5 {[%emt 0:02:36]} 44. Rb8 {[%emt 0:01:56]} b6 {[%emt 0:00:06]} 45. Rb7+ {[%emt 0:00:02]} Kg8 {[%emt 0:00:05]} 46. Kc1 {[%emt 0:02:33]} Be4 {[%emt 0:00:44]} 47. Ra7 {[%emt 0:00:25]} b5 {[%emt 0:00:30]} 48. Ra8+ {[%emt 0:01:18] What a bad dream for Black.   Weighted Error Value: White=0.31/Black=0.23 (precise) .  Missed win:     	White=1     	Black=1      Mistake:       	White=3     	Black=5      Inaccurate:     	White=2     	Black=3      OK:         	White=16    	Black=12     Best:        	White=1     	Black=3      Strong:       	White=2     	---} 1/2-1/2

[Event "53rd Indian Junior Open-ch 2024"]
[Site "Karnal"]
[Date "2024.09.18"]
[Round "3.3"]
[White "Jaiveer Mahendru"]
[Black "Bivor Adak"]
[Result "0-1"]
[ECO "C58"]
[WhiteElo "2246"]
[BlackElo "1918"]
[Annotator "RC"]
[PlyCount "122"]
[EventDate "2024.09.16"]
[EventType "swiss"]
[EventCountry "IND"]
[SourceTitle "playchess.com"]
[Source "ChessBase"]
[SourceQuality "1"]
[TimeControl "5400+30"]

1. e4 {[%emt 0:01:02]} e5 {[%emt 0:00:48]} 2. Nf3 {[%emt 0:00:03]} Nc6 {[%emt 0:00:14]} 3. Bc4 {[%emt 0:01:03]} Nf6 {[%emt 0:00:54]} 4. Ng5 {[%emt 0:00:03]} d5 {[%emt 0:00:16]} 5. exd5 {[%emt 0:00:04]} Na5 {[%emt 0:00:14]} 6. Bb5+ {[%emt 0:00:04]} c6 {[%emt 0:00:11]} 7. dxc6 {[%emt 0:00:03]} bxc6 {[%emt 0:00:11]} 8. Bd3 {[%emt 0:00:03]} Nd5 {[%emt 0:00:18]} 9. h4 {[%emt 0:00:03]} h6 {[%emt 0:00:23]} 10. Qh5 {[%emt 1:33:02]} Qf6 {[%emt 0:00:14]} 11. Nh7 {[%emt 0:00:00]} Rxh7 {[%emt 0:01:24]} 12. Bxh7 {[%emt 0:00:00]} g6 {[%emt 0:00:16]} 13. Qe2 {[%emt 0:00:00]} Nf4 {[%emt 0:03:24]} 14. Qf3 {[%emt 0:00:00]} Bb7 {[%emt 0:12:25]} 15. Nc3 {[%emt 0:00:00]} c5 {[%emt 0:01:39]} 16. Ne4 {[%emt 0:00:00]} Qg7 {[%emt 0:03:30]} 17. d3 {[%emt 0:00:00]} f5 {[%emt 0:02:08]} 18. Bxf4 {[%emt 0:00:00]} exf4 {[%emt 0:03:08]} 19. O-O-O {[%emt 0:00:00]} fxe4 {[%emt 0:05:06]} 20. dxe4 {[%emt 0:00:00]} Qxh7 {[%emt 0:00:49]} 21. Qxf4 {[%emt 0:00:00]} Qf7 {[%emt 0:02:20]} 22. Qe5+ {[%emt 0:00:00]} Qe7 {[%emt 0:01:23]} 23. Qg3 {[%emt 0:00:00]} Kf7 {[%emt 0:03:29]} 24. e5 {[%emt 0:00:00]} Nc6 {[%emt 0:04:20]} 25. e6+ {[%emt 0:00:00]} Qxe6 {[%emt 0:04:33]} 26. Rhe1 {[%emt 0:00:00]} Qxa2 {[%emt 0:01:44]} 27. Qc7+ {[%emt 0:00:00]} Kg8 {[%emt 0:01:07]} 28. Qxb7 {[%emt 0:00:00]} Qa1+ {[%emt 0:17:03]} 29. Kd2 {[%emt 0:00:00]} Rd8+ {[%emt 0:02:08]} 30. Ke2 {[%emt 0:00:00]} Rxd1 {[%emt 0:01:59]} 31. Rxd1 {[%emt 0:00:00]} Nd4+ {[%emt 0:00:16]} 32. Kd2 {[%emt 0:00:00]} Qa4 {[%emt 0:00:14]} 33. Qd5+ {[%emt 0:02:20]} Kh7 {[%emt 0:01:13]} 34. Qe4 {[%emt 0:07:27]} Qb4+ {[%emt 0:00:56]} 35. Ke3 {[%emt 0:00:13]} Qxb2 {[%emt 0:09:00]} 36. h5 {[%emt 0:00:36]} Qxc2 {[%emt 0:00:31]} 37. hxg6+ {[%emt 0:00:19]} Kg7 {[%emt 0:00:07]} 38. Qxc2 {[%emt 0:01:30]} Nxc2+ {[%emt 0:00:01]} 39. Kd3 {[%emt 0:00:01]} Na3 {[%emt 0:00:43]} 40. Kc3 {[%emt 0:01:18]} c4 {[%emt 0:00:11]} 41. Rd8 {[%emt 0:00:35]} a5 {[%emt 0:00:09]} 42. Rb8 {[%emt 0:01:05]} Bd6 {[%emt 0:01:22]} 43. Rb7+ {[%emt 0:00:22]} Kxg6 {[%emt 0:00:06]} 44. Kb2 {[%emt 0:00:21]} Bb4 {[%emt 0:00:14]} 45. Kc1 {[%emt 0:00:39]} c3 {[%emt 0:00:08]} 46. Rd7 {[%emt 0:00:29]} Bc5 {[%emt 0:00:24]} 47. Rd3 {[%emt 0:00:30]} c2 {[%emt 0:00:29]} 48. Rc3 {[%emt 0:00:41]} Be7 {[%emt 0:00:29]} 49. Rg3+ {[%emt 0:00:28]} Kf7 {[%emt 0:00:24]} 50. Rf3+ {[%emt 0:00:14]} Ke6 {[%emt 0:00:16]} 51. Re3+ {[%emt 0:00:06]} Kd7 {[%emt 0:00:24]} 52. Rd3+ {[%emt 0:00:06]} Kc6 {[%emt 0:00:13]} 53. f4 {[%emt 0:00:19]} h5 {[%emt 0:00:41]} 54. g3 {[%emt 0:00:42]} a4 {[%emt 0:03:36]} 55. Kb2 {[%emt 0:00:43]} Kb5 {[%emt 0:00:46]} 56. Kc1 {[%emt 0:01:17]} Kc4 {[%emt 0:00:11]} 57. Rf3 {[%emt 0:00:24]} Kd4 {[%emt 0:00:18]} 58. Kb2 {[%emt 0:00:29]} Ke4 {[%emt 0:00:22]} 59. Rf1 {[%emt 0:00:02]} Nc4+ {[%emt 0:00:11]} 60. Kc3 {[%emt 0:00:07]} Ne3 {[%emt 0:00:21]} 61. Re1 {[%emt 0:00:09]} Ba3 {[%emt 0:00:09]} 0-1

[Event "53rd Indian Junior Open-ch 2024"]
[Site "Karnal"]
[Date "2024.09.18"]
[Round "3.4"]
[White "Sharnarthi Viresh"]
[Black "Lakshmi Charan Naidu G"]
[Result "0-1"]
[ECO "A05"]
[WhiteElo "2147"]
[BlackElo "1912"]
[Annotator "TA"]
[PlyCount "108"]
[EventDate "2024.09.16"]
[EventType "swiss"]
[EventCountry "IND"]
[SourceTitle "playchess.com"]
[Source "ChessBase"]
[SourceQuality "1"]
[TimeControl "5400+30"]

{[%evp 9,107,17,12,9,11,0,7,-68,-22,-38,-36,-37,-33,-29,-18,-18,-23,-12,-9,-1,-14,-28,-24,-17,-32,-45,22,23,32,40,35,-77,-79,-84,-92,-91,-58,-70,-22,-24,-44,-31,-12,-90,-89,-165,-156,-251,-249,-258,-254,-253,-260,-258,-253,-710,-711,-700,-212,-710,-712,-793,-792,-757,-728,-710,-478,-460,-425,-5783,-5614,-1892,-1187,-5631,-1150,-29973,-5622,-7348,-6079,-29982,-29982,-29986,-29984,-29985,-29985,-29986,-29987,-29987,-29988,-29991,-29991,-29997,-29998,-29998,-29999,-29999,-29998,-29998,-29999,-29999]} 1. Nf3 {[%emt 0:02:25]} c5 {[%emt 0:01:24]} 2. b3 {[%emt 0:00:45]} Nf6 {[%emt 0:02:24]} 3. Bb2 {[%emt 0:03:29]} e6 {[%emt 0:00:52]} 4. e3 {[%emt 0:01:13]} Be7 {[%emt 0:00:29]} 5. d4 {[%emt 0:01:46]} O-O {[%emt 0:05:51]} 6. c4 {[%emt 0:01:10]} cxd4 {[%emt 0:00:33]} 7. exd4 {[%emt 0:00:48]} d5 {[%emt 0:00:43]} 8. c5 {[%emt 0:06:33]} ({White should play} 8. Bd3 $11) 8... Nc6 {[%emt 0:18:15]} (8... b6 $15 9. b4 Ne4) 9. a3 {[%emt 0:02:03]} a5 {[%emt 0:03:34]} 10. Bb5 {[%emt 0:00:12]} Bd7 {[%emt 0:00:05]} 11. O-O {[%emt 0:09:24]} b6 {[%emt 0:05:22]} 12. Bxc6 {[%emt 0:01:10]} Bxc6 {[%emt 0:00:06]} 13. b4 {[%emt 0:00:13]} Nd7 {[%emt 0:18:59]} 14. Nc3 {[%emt 0:01:50] b5 would now be deadly.} bxc5 {[%emt 0:00:26]} 15. dxc5 {[%emt 0:00:21]} Rb8 {[%emt 0:00:25]} 16. Nd4 {[%emt 0:02:43]} Ba8 {[%emt 0:02:37]} 17. Ncb5 {[%emt 0:10:50]} e5 {[%emt 0:05:46]} (17... Ne5 $1 $15 18. Qe2 Nc4) 18. c6 $1 $11 {[%emt 0:00:22]} Rxb5 $1 {[%emt 0:00:06]} 19. Nxb5 {[%emt 0:03:42]} Bxc6 {[%emt 0:00:06]} 20. Nc3 {[%emt 0:00:05]} (20. Na7 $14 {keeps the upper hand.} Ba8 21. Qc2) 20... d4 $17 {[%emt 0:00:43]} (20... axb4 21. Nxd5 Re8 22. Nxb4 (22. axb4 Bf8 $18) 22... Bxb4 23. axb4 $16) 21. Ne2 {[%emt 0:00:02]} axb4 {[%emt 0:01:28] White is weak on the light squares} 22. axb4 {[%emt 0:00:01]} Bxb4 {[%emt 0:00:45] This pair of bishops is nice.} 23. Ba3 {[%emt 0:05:54] [#]} Qg5 {[%emt 0:03:49] Black has more active pieces.} 24. Ng3 $11 {[%emt 0:00:01]} Bxa3 {[%emt 0:00:56]} 25. Rxa3 {[%emt 0:00:05]} Bd5 $36 {[%emt 0:07:26][%mdl 2048] Black fights for an advantage.} 26. f4 {[%emt 0:01:12]} exf4 $17 {[%emt 0:01:40] White is on the road to losing.} 27. Qc1 {[%emt 0:01:29]} (27. Qd2 $17) 27... Bxg2 $1 $19 {[%emt 0:05:05]} 28. Rxf4 {[%emt 0:04:19]} (28. Kxg2 $17 Qd5+ 29. Kg1 fxg3 30. Rxg3) 28... Bb7 {[%emt 0:00:34]} 29. Ra7 {[%emt 0:14:04]} Rc8 {[%emt 0:02:40]} 30. Qf1 {[%emt 0:06:07]} Qd5 {[%emt 0:00:14][%cal Oc8c1] [#] aiming for ...Rc1!} 31. Rf5 {[%emt 0:03:53]} Qb3 {[%emt 0:00:06]} (31... Ne5 32. Rxe5 (32. Rxb7 Qxb7 33. Rxe5 Rd8 $11) 32... Qxe5 33. Rxb7 $14) 32. Rb5 $2 {[%emt 0:03:10]} (32. Qb5 Qe3+ 33. Rf2) 32... Qe3+ {[%emt 0:01:09]} 33. Qf2 {[%emt 0:00:01]} Rc1+ {[%emt 0:06:01]} 34. Nf1 {[%emt 0:00:02]} Bc6 {[%emt 0:00:06]} 35. Rb4 {[%emt 0:10:51]} Qg5+ {[%emt 0:04:38]} ({And not} 35... Qe4 36. Rb8+ (36. Rxd4 $2 Qh1#) (36. Rxd4 $2 Qh1#)) 36. Qg3 {[%emt 0:00:01]} Qc5 {[%emt 0:00:57][%csl LRa7,LRb4]} 37. Rb8+ {[%emt 0:05:38]} Nxb8 {[%emt 0:00:38]} 38. Qxb8+ {[%emt 0:00:03]} Qf8 {[%emt 0:00:04]} 39. Qf4 {[%emt 0:00:08]} (39. Qxf8+ $142 Kxf8 40. Kf2) 39... Rc2 {[%emt 0:00:53]} 40. Nd2 {[%emt 0:00:58]} Qe8 {[%emt 0:01:13]} 41. Kf2 {[%emt 0:01:23] Against Qe1+} h6 {[%emt 0:00:59]} 42. Qxd4 {[%emt 0:00:19]} Qb8 {[%emt 0:00:32]} (42... Rc1 $142 43. Ne4 Qe6 (43... Bxe4 $2 44. Qd7 $19) (43... Qxe4 $2 44. Qxe4 Bxe4 45. Ke3 $19) 44. Ra4 Qf5+ 45. Ke3 Bxe4 (45... Re1+ $2 46. Kd2 $19) 46. Qxe4 Qh3+ (46... Re1+ $2 47. Kd3 $19) 47. Ke2 Qxh2+ 48. Kd3 Qg3+ (48... Qc2+ {leads to mate.} 49. Ke3 Qb3+ 50. Qd3 Re1+ 51. Kf2 Qxd3 52. Kxe1 Qe3+ 53. Kf1 Qc1+ 54. Kf2 Qc2+ 55. Ke3 Qxa4 56. Kd3 f5 57. Kc3 Qe4 58. Kb3 f4 59. Kc3 f3 60. Kd2 f2 61. Kc3 f1=Q 62. Kb3 Qec4+ 63. Kb2 Qfc1#) 49. Qe3 Rd1+ (49... Rc3+ $2 50. Kxc3 Qxe3+ 51. Kc2 $19) 50. Kc2 Qxe3 51. Ra8+ Kh7 52. Kxd1 Qf3+ 53. Ke1 Qxa8 54. Kd2 Qf3 55. Kc2 g5 56. Kb2 g4 57. Kc2 g3 58. Kb2 g2 59. Kc2 g1=Q (59... g1=B 60. Kd2 Bd4 61. Kc2 Qc3+ 62. Kd1 Qb2 63. Ke1 Qc2 64. Kf1 Qf2#) 60. Kb2 Qh2+ 61. Kc1 Qfh1#) 43. Ke3 {[%emt 0:00:21]} Rc1 {[%emt 0:00:40] ( -> ...Qe8+)} ({Stronger than} 43... Qxh2 44. Qd8+ Kh7 45. Qd3+ Kh8 46. Qd8+ Kh7 47. Qd3+ Kh8 48. Qd8+ Kh7 $11) 44. Kd3 {[%emt 0:00:49]} Bb5+ {[%emt 0:00:20] Black mates.} 45. Ke3 {[%emt 0:00:01]} Qxh2 {[%emt 0:00:39]} 46. Nf3 {[%emt 0:00:33]} Qe2+ {[%emt 0:00:06]} 47. Kf4 {[%emt 0:00:05]} Rc4 {[%emt 0:00:16]} 48. Ra8+ {[%emt 0:00:27]} Kh7 {[%emt 0:00:14]} 49. Kg3 {[%emt 0:00:16]} Rxd4 {[%emt 0:00:09]} 50. Ng5+ {[%emt 0:00:02]} hxg5 {[%emt 0:00:09][%cal Rd4d3]} 51. Rh8+ {[%emt 0:00:05]} Kxh8 {[%emt 0:00:05][%cal Rd4d3]} 52. Kh3 {[%emt 0:00:04]} Qf3+ {[%emt 0:00:20]} 53. Kh2 {[%emt 0:00:03]} Rh4+ {[%emt 0:00:03]} 54. Kg1 {[%emt 0:00:05]} Qf1# {[%emt 0:00:01] Weighted Error Value: White=1.23/Black=0.68.  Mistake:       	White=7     	Black=3      Inaccurate:     	---       	Black=1      OK:         	White=9     	Black=15     Best:        	White=3     	Black=3      Strong:       	White=1     	Black=2} 0-1